bitfinex-derivatives/quotes_SOLF0:USTF0_20240905
["timestamp","ask_amount","ask_price","bid_price","bid_amount"]
[1725566906252,3.8899,128.56,128.54,0.05591066]
[1725566906850,3.8899,128.56,128.54,3.94631066]
[1725566907352,3.8899,128.56,128.54,0.05591066]
[1725566908053,3.94806796,128.57,128.54,3.94611066]
[1725566908351,0.05836796,128.57,128.54,3.94611066]
[1725566908552,3.8899,128.56,128.54,3.94611066]
[1725566909449,0.05836796,128.57,128.54,26.85591066]
[1725566909643,0.05836796,128.57,128.56,26.8]
[1725566909846,0.05836796,128.57,128.56,30.6898]
[1725566910747,10.70567515,128.67,128.56,26.8]
[1725566910942,10.70567515,128.67,128.57,26.8]
[1725566910943,0.68406138,128.66,128.57,26.8]
[1725566911343,3.8882,128.62,128.57,26.8]
[1725566911754,0.05736811,128.61,128.58,0.05187705]
[1725566912049,0.05736811,128.61,128.6,3.8886]
[1725566918160,3.94566811,128.61,128.58,0.05187705]
[1725566919355,3.94566811,128.61,128.59,3.8888]
[1725566920659,3.94566811,128.61,128.59,10.1088]
[1725566920957,0.05736811,128.61,128.6,3.8886]
[1725566921756,0.68435887,128.66,128.59,33.02]
[1725566921956,12.29659932,128.67,128.62,30.6877]
[1725566922460,3.8872,128.65,128.62,30.6877]
[1725566922963,3.92937488,128.65,128.62,30.73750065]
[1725566923161,0.04217488,128.65,128.62,26.84980065]
[1725566924464,0.04217488,128.65,128.64,3.8873]
[1725566926469,110.7798359,128.7,128.67,3.8863]
[1725566926863,114.6656359,128.7,128.67,3.8863]
[1725566927266,110.7798359,128.7,128.68,3.8861]
[1725566927457,110.7798359,128.7,128.68,3.94135967]
[1725566929069,114.6653359,128.7,128.68,3.94135967]
[1725566929468,110.7798359,128.7,128.68,0.05525967]
[1725566929665,3.8858,128.69,128.68,0.05525967]
[1725566930567,3.8868,128.66,128.64,26.8]
[1725566931066,3.8866,128.67,128.64,30.6873]
[1725566931572,3.93650475,128.67,128.64,30.74110918]
[1725566932071,3.8868,128.66,128.64,30.74110918]
[1725566933164,0.04990475,128.67,128.65,3.887]
[1725566933368,0.04990475,128.67,128.64,26.85380918]
[1725566933870,3.8868,128.66,128.64,30.74100918]
[1725566934464,3.8868,128.66,128.64,36.95100918]
[1725566935966,3.8868,128.66,128.64,33.06380918]
[1725566936173,3.887,128.65,128.64,33.06380918]
[1725566936975,3.887,128.65,128.64,6.26380918]
[1725566939577,3.8868,128.66,128.64,33.06380918]
[1725566939979,3.8868,128.66,128.64,36.95100918]
[1725566940680,3.8868,128.66,128.64,42.23100918]
[1725566940879,0.04990475,128.67,128.64,38.34380918]
[1725566941070,110.7798359,128.7,128.65,26.8]
[1725566941273,110.7798359,128.7,128.64,11.54380918]
[1725566941274,26.8,128.77,128.67,26.8]
[1725566941476,8.70560161,128.76,128.71,26.8]
[1725566941677,0.68420161,128.75,128.71,26.8]
[1725566941880,0.68420161,128.75,128.73,26.8]
[1725566942077,4.56850161,128.75,128.73,26.85219045]
[1725566942274,3.8843,128.75,128.73,26.85219045]
[1725566942873,3.8843,128.74,128.73,26.85219045]
[1725566943178,8.0214,128.76,128.73,26.85219045]
[1725566943381,0.68373074,128.75,128.73,26.85219045]
[1725566943785,3.8843,128.74,128.73,26.85219045]
[1725566944377,3.8843,128.74,128.73,0.05219045]
[1725566944979,3.8841,128.75,128.73,0.05219045]
[1725566946286,3.82557623,128.79,128.73,26.85219045]
[1725566946486,0.6829991,128.78,128.73,26.85219045]
[1725566946780,12.16575864,128.8,128.75,26.8]
[1725566946978,3.8833,128.78,128.76,0.05459364]
[1725566947188,5.4015,128.8,128.76,0.05459364]
[1725566947382,0.68285484,128.79,128.76,0.05459364]
[1725566948286,3.8833,128.78,128.76,0.05459364]
[1725566949983,3.8833,128.78,128.76,6.26459364]
[1725566950184,3.8834,128.77,128.76,6.26459364]
[1725566952891,5.4015,128.8,128.76,6.26459364]
[1725566953093,0.68281229,128.79,128.76,6.26459364]
[1725566954091,3.8834,128.78,128.76,6.26459364]
[1725566956096,3.8834,128.77,128.76,6.26459364]
[1725566957297,3.8834,128.77,128.76,12.47459364]
[1725566958292,3.8834,128.77,128.76,17.75459364]
[1725566964496,5.4015,128.8,128.76,17.75459364]
[1725566964497,3.8831,128.78,128.76,17.75459364]
[1725566964694,5.4015,128.8,128.76,17.75459364]
[1725566964897,2.8185,128.82,128.76,44.55459364]
[1725566965096,3.8831,128.79,128.76,44.55459364]
[1725566965705,3.8832,128.78,128.76,48.43809364]
[1725566966099,3.8832,128.78,128.76,54.64809364]
[1725566968403,3.80456806,128.82,128.76,50.76459364]
[1725566968594,0.68422793,128.81,128.76,50.76459364]
[1725566968798,0.68422793,128.8,128.77,0.05772764]
[1725566969101,3.8827,128.8,128.77,3.94092764]
[1725566969304,3.83670286,128.82,128.77,3.94092764]
[1725566969505,0.68434761,128.81,128.77,3.94092764]
[1725566969709,0.68434761,128.8,128.77,3.94092764]
[1725566969900,3.89156579,128.82,128.77,3.94092764]
[1725566969901,3.8829,128.79,128.77,3.94092764]
[1725566970805,3.8829,128.79,128.78,6.21]
[1725566974107,3.8829,128.79,128.78,16.94]
[1725566975809,3.8829,128.79,128.78,23.15]
[1725566978412,3.8827,128.8,128.78,27.0331]
[1725566978611,3.8827,128.8,128.79,10.73]
[1725566981313,3.8827,128.8,128.78,12.42]
[1725566981612,3.8828,128.79,128.78,12.42]
[1725566986112,3.8828,128.79,128.78,18.63]
[1725566990113,3.8828,128.79,128.78,23.91]
[1725566994519,3.8828,128.79,128.78,26.79]
[1725566996419,4.56572448,128.79,128.78,26.79]
[1725566996617,3.8828,128.79,128.78,26.79]
[1725566997411,4.56557008,128.79,128.78,26.79]
[1725566998815,4.5656869,128.79,128.78,26.79]
[1725566999017,4.56568767,128.79,128.78,26.79]
[1725567001020,15.29568767,128.79,128.78,10.0482]
[1725567001226,15.29568767,128.79,128.78,0.0001]
[1725567001419,4.56568767,128.79,128.78,0.0001]
[1725567001621,0.68288767,128.79,128.78,10.7301]
[1725567001825,3.8828,128.8,128.78,10.7301]
[1725567002022,3.8828,128.8,128.79,10.73]
[1725567002427,3.96294661,128.83,128.79,10.73]
[1725567002627,0.68278474,128.82,128.8,0.05908202]
[1725567002823,3.84713234,128.83,128.8,7.08908202]
[1725567003019,3.8822,128.81,128.8,7.08908202]
[1725567003227,3.8822,128.81,128.8,17.81908202]
[1725567005530,99.76418453,128.85,128.8,17.81908202]
[1725567005727,95.80875641,128.85,128.84,10.73]
[1725567005934,26.48897617,128.9,128.84,10.73]
[1725567006235,26.48897617,128.9,128.8,7.03]
[1725567006236,3.8804,128.87,128.86,0.05540427]
[1725567006438,4.56325726,128.87,128.86,0.05540427]
[1725567007936,3.8804,128.87,128.86,0.05540427]
[1725567009041,4.56267674,128.87,128.86,0.05540427]
[1725567009231,3.8804,128.87,128.86,0.05540427]
[1725567009437,4.56277454,128.87,128.86,0.05540427]
[1725567011437,3.8804,128.87,128.86,0.05540427]
[1725567011641,4.56264226,128.87,128.86,0.05540427]
[1725567012036,15.29264226,128.87,128.86,0.05540427]
[1725567015341,3.8822,128.81,128.8,7.03]
[1725567015543,7.76470361,128.81,128.8,7.03]
[1725567015745,8.44708417,128.81,128.8,7.03]
[1725567016341,8.44698653,128.81,128.8,7.03]
[1725567018645,7.76470361,128.81,128.8,7.03]
[1725567022853,7.76470361,128.81,128.8,13.24]
[1725567023244,3.8822,128.81,128.8,13.24]
[1725567026653,0.05630146,128.82,128.8,13.24]
[1725567026851,0.05630146,128.82,128.8,6.21]
[1725567027051,3.8822,128.81,128.8,6.21]
[1725567028448,0.05630146,128.82,128.8,6.21]
[1725567028645,0.05630146,128.82,128.8,13.25]
[1725567029550,3.8822,128.81,128.8,13.25]
[1725567029751,0.05630146,128.82,128.8,13.25]
[1725567030349,3.8822,128.81,128.8,13.25]
[1725567033552,4.56384938,128.81,128.8,13.25]
[1725567035453,4.56400171,128.81,128.8,13.25]
[1725567036865,4.56388701,128.81,128.8,13.25]
[1725567037156,11.6467,128.81,128.8,13.25]
[1725567037459,12.3283831,128.81,128.8,13.25]
[1725567038360,39.17820853,128.81,128.8,13.25]
[1725567038855,39.17820853,128.81,128.79,0.04975804]
[1725567038856,3.8825,128.8,128.79,0.04975804]
[1725567039053,27.53150853,128.8,128.72,2.6269]
[1725567039253,26.85,128.77,128.72,2.6269]
[1725567039454,3.8846,128.73,128.72,2.6269]
[1725567042157,3.8849,128.72,128.71,15.33306907]
[1725567044066,3.8849,128.72,128.71,12.47646907]
[1725567051774,14.6349,128.72,128.71,12.47646907]
[1725567052075,14.6349,128.72,128.65,10.75]
[1725567052076,3.8867,128.66,128.65,2.6908]
[1725567061971,3.94383889,128.67,128.65,2.6908]
[1725567062576,3.94383889,128.67,128.65,6.5778]
[1725567065984,3.8867,128.66,128.65,2.6908]
[1725567066477,0.05723889,128.67,128.64,10.20627956]
[1725567066871,3.887,128.65,128.64,10.20627956]
[1725567068479,3.887,128.66,128.64,10.20627956]
[1725567068782,3.887,128.66,128.64,16.80677956]
[1725567069079,3.8869,128.66,128.64,12.91947956]
[1725567070284,3.887,128.65,128.64,12.91947956]
[1725567073275,3.887,128.66,128.64,16.80677956]
[1725567074084,3.887,128.65,128.64,23.67947956]
[1725567075681,0.05723889,128.67,128.66,10.76]
[1725567075984,1.0,128.71,128.66,10.76]
[1725567076185,1.0,128.71,128.67,10.76]
[1725567076776,3.8856,128.7,128.67,14.6463]
[1725567076984,0.0526152,128.7,128.67,10.8167994]
[1725567077288,3.8854,128.71,128.69,10.76]
[1725567077686,3.8854,128.71,128.69,20.91]
[1725567078187,3.8855,128.7,128.69,20.91]
[1725567078487,3.8855,128.7,128.69,10.15]
[1725567081182,14.6455,128.7,128.69,10.15]
[1725567081589,18.44378107,128.7,128.69,10.15]
[1725567086998,19.12345755,128.7,128.69,6.2569]
[1725567087199,3.8858,128.69,128.68,0.05735719]
[1725567087497,15.32547648,128.69,128.68,0.05735719]
[1725567092106,4.56547648,128.69,128.68,0.05735719]
[1725567092308,15.32547648,128.69,128.68,0.05735719]
[1725567092914,14.6458,128.69,128.68,0.05735719]
[1725567093407,15.32539054,128.69,128.68,0.05735719]
[1725567093810,19.17132638,128.69,128.68,0.05735719]
[1725567094907,19.17132638,128.69,128.52,7.7815]
[1725567095110,10.76,128.65,128.58,18.8038]
[1725567095408,10.76,128.65,128.58,22.70625927]
[1725567095612,10.76,128.63,128.58,5.3971]
[1725567095806,1.0,128.68,128.59,0.05436019]
[1725567095807,10.81881493,128.62,128.59,0.05436019]
[1725567096106,3.8888,128.6,128.59,0.05634292]
[1725567097213,3.8884,128.61,128.59,0.05634292]
[1725567100215,3.8886,128.6,128.59,0.05634292]
[1725567115327,3.8886,128.6,128.59,6.27634292]
[1725567117130,0.05850459,128.62,128.59,6.27634292]
[1725567117829,1.0,128.68,128.61,3.8883]
[1725567118026,15.67863015,128.68,128.61,14.6483]
[1725567118527,15.67863015,128.68,128.61,17.5504]
[1725567118935,3.8873,128.65,128.63,0.05749476]
[1725567119726,3.8873,128.64,128.63,0.05749476]
[1725567120828,3.8871,128.65,128.63,3.94519476]
[1725567121028,3.8871,128.65,128.63,14.70519476]
[1725567121329,0.05598481,128.66,128.63,0.05749476]
[1725567121532,3.8873,128.64,128.63,0.05749476]
[1725567130740,3.8872,128.65,128.63,0.05749476]
[1725567131633,0.05598481,128.66,128.63,10.81749476]
[1725567132033,0.05598481,128.66,128.64,3.8872]
[1725567132428,0.05598481,128.66,128.63,10.81749476]
[1725567132627,3.8872,128.65,128.63,0.05749476]
[1725567133236,3.8872,128.65,128.63,3.94489476]
[1725567133839,3.8873,128.64,128.63,0.05749476]
[1725567135941,0.05598481,128.66,128.63,0.05749476]
[1725567136844,3.8873,128.64,128.63,0.05749476]
[1725567137842,3.8872,128.65,128.63,3.94519476]
[1725567138044,30.11281371,128.73,128.64,10.76]
[1725567138338,30.11281371,128.73,128.67,10.76]
[1725567138545,30.11281371,128.73,128.67,14.6463]
[1725567139042,3.8858,128.7,128.69,0.05793686]
[1725567139238,19.35281371,128.73,128.69,3.94373686]
[1725567139438,30.11281371,128.73,128.69,0.05793686]
[1725567139740,3.8855,128.7,128.69,0.05793686]
[1725567142739,3.8853,128.71,128.69,0.05793686]
[1725567143241,104.4803542,128.74,128.69,0.05793686]
[1725567143946,3.8855,128.71,128.69,0.05793686]
[1725567144844,3.8855,128.7,128.69,0.05793686]
[1725567163761,3.8855,128.7,128.69,6.26793686]
[1725567167657,104.4803542,128.74,128.69,6.26793686]
[1725567168264,3.8852,128.71,128.69,6.26793686]
[1725567169363,3.8855,128.7,128.69,6.26793686]
[1725567171381,4.5643944,128.7,128.69,6.26793686]
[1725567172578,4.56466077,128.7,128.69,6.26793686]
[1725567176778,3.8853,128.71,128.69,6.26793686]
[1725567180384,3.8855,128.7,128.69,6.26793686]
[1725567189494,121.45456681,128.75,128.69,10.15373686]
[1725567189789,0.67918158,128.74,128.69,10.15373686]
[1725567190490,3.8851,128.72,128.69,10.15373686]
[1725567190887,3.8848,128.73,128.69,17.01793686]
[1725567191088,110.70456681,128.75,128.7,2.6885]
[1725567191491,110.70456681,128.75,128.71,2.7506]
[1725567191693,110.70456681,128.75,128.72,0.05807388]
[1725567192192,3.8845,128.74,128.72,0.05807388]
[1725567192982,3.8845,128.74,128.72,6.26807388]
[1725567195196,3.8846,128.73,128.72,6.26807388]
[1725567197698,3.8845,128.74,128.72,6.26807388]
[1725567203389,114.58866681,128.75,128.72,6.26807388]
[1725567204101,3.8844,128.74,128.72,6.26807388]
[1725567205894,14.72013872,128.78,128.72,10.15297388]
[1725567206093,0.67858591,128.77,128.72,10.15297388]
[1725567206496,3.8842,128.75,128.72,10.15297388]
[1725567207295,3.8844,128.74,128.72,6.26807388]
[1725567207491,10.75,128.76,128.72,6.26807388]
[1725567207695,0.67883188,128.75,128.72,6.26807388]
[1725567208302,14.72013872,128.78,128.72,6.26807388]
[1725567208495,0.67916196,128.77,128.72,6.26807388]
[1725567208697,3.8842,128.75,128.72,6.26807388]
[1725567209595,3.8843,128.74,128.72,6.26807388]
[1725567213599,3.87502681,128.77,128.72,6.26807388]
[1725567213795,3.8842,128.75,128.72,6.26807388]
[1725567214103,3.87502681,128.77,128.72,6.26807388]
[1725567214305,3.8843,128.74,128.72,6.26807388]
[1725567214904,3.8842,128.75,128.72,10.15297388]
[1725567215104,3.87502681,128.77,128.72,6.26807388]
[1725567215309,0.68159254,128.76,128.72,6.26807388]
[1725567215602,4.56559254,128.76,128.72,10.15287388]
[1725567215903,3.87502681,128.77,128.72,10.15287388]
[1725567216105,4.56516025,128.76,128.72,10.15287388]
[1725567216304,3.8839,128.76,128.73,10.80925401]
[1725567216697,3.8836,128.77,128.73,14.69365401]
[1725567216899,3.8836,128.77,128.74,0.05402515]
[1725567217199,3.8943296,128.82,128.76,3.8836]
[1725567217403,0.68130397,128.81,128.78,0.05167554]
[1725567217604,0.68130397,128.8,128.78,0.05167554]
[1725567217796,3.87956363,128.82,128.78,0.05167554]
[1725567218000,0.68131424,128.81,128.78,0.05167554]
[1725567218303,3.8821,128.82,128.78,20.89457554]
[1725567218509,30.07134552,128.85,128.78,17.01167554]
[1725567218704,0.68138467,128.84,128.78,17.01167554]
[1725567218905,3.882,128.82,128.78,20.89467554]
[1725567219305,3.882,128.82,128.78,10.14467554]
[1725567220306,3.8822,128.81,128.78,6.26167554]
[1725567224814,10.75,128.81,128.78,6.26167554]
[1725567225202,3.8828,128.79,128.78,6.26167554]
[1725567225407,14.6328,128.79,128.78,6.26167554]
[1725567225607,15.31267649,128.79,128.78,2.25617554]
[1725567225803,11.42987649,128.79,128.72,2.6699]
[1725567226013,10.75,128.76,128.72,6.5547]
[1725567226419,14.634,128.76,128.72,6.5547]
[1725567226715,0.05167554,128.75,128.73,0.05275025]
[1725567227611,0.05167554,128.75,128.73,17.01275025]
[1725567228212,0.05167554,128.75,128.73,20.89725025]
[1725567229621,3.93567554,128.75,128.73,10.14725025]
[1725567229918,0.05167554,128.75,128.73,10.14725025]
[1725567232017,3.93587554,128.75,128.73,6.26275025]
[1725567233016,3.8843,128.74,128.73,6.26275025]
[1725567234915,0.05167554,128.75,128.73,6.26275025]
[1725567235113,0.05167554,128.75,128.73,10.14725025]
[1725567235314,3.93587554,128.75,128.73,10.14725025]
[1725567236017,3.93587554,128.75,128.73,6.26275025]
[1725567237313,0.05167554,128.75,128.73,20.89735025]
[1725567240619,0.05167554,128.75,128.74,3.8843]
[1725567242623,10.75,128.8,128.74,14.6343]
[1725567242624,3.8836,128.77,128.74,14.6343]
[1725567242918,3.89087448,128.82,128.75,14.72965806]
[1725567243124,3.8826,128.8,128.77,10.75]
[1725567243521,3.8826,128.8,128.77,14.6333]
[1725567243720,3.8826,128.8,128.77,14.68571259]
[1725567243928,3.8828,128.79,128.77,0.05241259]
[1725567246223,3.8831,128.78,128.77,0.05241259]
[1725567248227,3.8831,128.78,128.77,6.26241259]
[1725567250532,10.70567515,128.84,128.77,10.14571259]
[1725567250533,3.883,128.79,128.77,10.14571259]
[1725567253530,3.883,128.79,128.77,6.26241259]
[1725567257229,3.8831,128.78,128.77,6.26241259]
[1725567262333,4.5642675,128.78,128.77,6.26241259]
[1725567263928,3.8831,128.78,128.77,6.26241259]
[1725567264723,4.56413269,128.78,128.77,6.26241259]
[1725567264931,0.68103269,128.78,128.77,6.26241259]
[1725567265228,21.45567515,128.84,128.77,17.01241259]
[1725567265423,0.68137805,128.83,128.79,0.05333728]
[1725567265631,3.93909859,128.82,128.79,0.05333728]
[1725567265834,0.68137805,128.81,128.79,0.05333728]
[1725567266340,4.56407805,128.8,128.79,0.05333728]
[1725567267035,4.56407805,128.8,128.79,6.26333728]
[1725567267733,0.68137805,128.8,128.79,6.26333728]
[1725567267938,0.68137805,128.83,128.79,17.01333728]
[1725567268229,3.8821,128.82,128.79,17.01333728]
[1725567268433,0.68159046,128.81,128.79,17.01333728]
[1725567268828,3.8821,128.82,128.79,17.01333728]
[1725567269028,0.68186508,128.81,128.79,17.01333728]
[1725567269225,3.8818,128.83,128.8,10.75]
[1725567269437,0.68184638,128.82,128.8,10.75]
[1725567269636,3.8815,128.84,128.8,14.6323]
[1725567269829,0.68176738,128.83,128.8,14.6323]
[1725567271435,4.56336738,128.83,128.8,14.6323]
[1725567271637,0.68176738,128.82,128.8,14.6323]
[1725567272135,3.8816,128.83,128.8,14.6323]
[1725567272740,3.8816,128.83,128.8,10.75]
[1725567273647,3.8821,128.82,128.8,10.75]
[1725567273946,3.8821,128.82,128.79,20.89613728]
[1725567274243,121.56945587,128.85,128.79,20.89613728]
[1725567274543,10.75,128.83,128.79,6.26333728]
[1725567274737,4.49198241,128.82,128.79,6.26333728]
[1725567274942,0.68151174,128.81,128.79,6.26333728]
[1725567275138,10.75,128.83,128.79,6.26333728]
[1725567275344,3.8825,128.8,128.79,6.26333728]
[1725567277044,15.31398415,128.8,128.79,6.26333728]
[1725567277236,15.31398415,128.8,128.79,6.21103728]
[1725567277437,15.31398415,128.8,128.66,73.85200084]
[1725567277438,3.8845,128.74,128.66,73.85200084]
[1725567277637,3.8845,128.74,128.71,10.75]
[1725567278446,3.93783728,128.74,128.72,2.7273578]
[1725567279147,3.93783728,128.74,128.72,8.9373578]
[1725567282342,0.05333728,128.74,128.72,8.9373578]
[1725567283840,3.93783728,128.74,128.72,8.9373578]
[1725567286238,0.05333728,128.74,128.72,6.2674578]
[1725567286438,3.8846,128.73,128.72,6.2674578]
[1725567286745,15.31514028,128.73,128.72,6.2674578]
[1725567287146,4.56514028,128.73,128.72,6.2674578]
[1725567287344,4.56495062,128.73,128.72,6.2674578]
[1725567288740,3.8846,128.73,128.72,6.2674578]
[1725567288947,4.56506949,128.73,128.72,6.2674578]
[1725567289137,3.8846,128.73,128.72,6.2674578]
[1725567289343,4.5652111,128.73,128.72,6.2674578]
[1725567293051,4.56544695,128.73,128.72,6.2674578]
[1725567297049,3.8846,128.73,128.72,6.2674578]
[1725567297754,0.05333728,128.74,128.72,6.2674578]
[1725567299352,3.8846,128.73,128.72,6.2674578]
[1725567300351,3.93783728,128.74,128.72,6.2674578]
[1725567300559,0.05333728,128.74,128.72,6.2674578]
[1725567300958,3.8846,128.73,128.72,6.2674578]
[1725567303168,14.6346,128.73,128.72,6.2674578]
[1725567303357,15.31526963,128.73,128.72,6.2674578]
[1725567303963,15.31502488,128.73,128.72,6.2674578]
[1725567305167,0.05333728,128.74,128.48,419.34229915]
[1725567305470,10.75,128.72,128.66,10.75]
[1725567305762,10.75,128.69,128.64,2.6478]
[1725567305962,10.75,128.69,128.63,5.6108]
[1725567306263,0.05278398,128.67,128.65,0.0589846]
[1725567306768,28.92679943,128.77,128.66,10.75]
[1725567306769,7.77225285,128.77,128.66,10.75]
[1725567307066,3.8846,128.74,128.7,10.75]
[1725567307267,10.75,128.77,128.7,13.5608]
[1725567307468,0.68013909,128.76,128.72,10.75]
[1725567307668,10.75,128.79,128.72,10.75]
[1725567307864,0.05743931,128.77,128.74,0.05373022]
[1725567308265,0.05743931,128.77,128.74,10.80373022]
[1725567308861,0.67950329,128.79,128.76,10.75]
[1725567309062,10.75,128.83,128.76,10.75]
[1725567309268,0.67965948,128.82,128.76,10.75]
[1725567309569,10.75,128.79,128.75,2.6583]
[1725567309872,3.8834,128.77,128.76,0.055951]
[1725567310073,18.49114768,128.77,128.76,0.055951]
[1725567310275,15.28771422,128.77,128.69,2.6583]
[1725567310575,0.67996654,128.76,128.69,2.6583]
[1725567310769,10.75,128.75,128.69,2.6583]
[1725567311271,3.8852,128.72,128.71,0.0505665]
[1725567311470,14.6352,128.72,128.71,0.0505665]
[1725567311968,11.43009971,128.72,128.66,6.21]
[1725567312168,10.75,128.7,128.66,6.21]
[1725567312371,10.75,128.72,128.66,16.96]
[1725567312567,10.75,128.72,128.66,19.7388]
[1725567312769,3.8857,128.7,128.66,22.576]
[1725567312968,0.05836745,128.69,128.67,0.05553901]
[1725567313569,0.05836745,128.69,128.67,14.69183901]
[1725567313774,1.0,128.74,128.68,10.75]
[1725567314262,3.8848,128.73,128.68,14.636]
[1725567314461,1.0,128.74,128.7,10.75]
[1725567314873,0.04872184,128.73,128.71,0.05161553]
[1725567316276,3.85774768,128.77,128.71,16.18981553]
[1725567316481,0.67990871,128.76,128.74,10.75]
[1725567316777,39.6270224,128.84,128.75,10.75]
[1725567317071,39.6270224,128.84,128.71,48.3882]
[1725567317072,11.42927726,128.83,128.77,10.75]
[1725567317278,0.67927726,128.82,128.79,0.05159122]
[1725567317773,3.8825,128.8,128.79,0.05159122]
[1725567318077,31.41177726,128.8,128.79,0.05159122]
[1725567318276,27.52927726,128.8,128.71,2.6411]
[1725567318477,3.8835,128.77,128.73,3.8845]
[1725567318676,3.97436787,128.78,128.71,2.6411]
[1725567318875,26.85,128.78,128.71,5.337]
[1725567319071,3.93201709,128.78,128.71,5.337]
[1725567319373,0.04973978,128.76,128.73,0.05661708]
[1725567319575,31.43328393,128.76,128.73,0.05661708]
[1725567319768,30.7343,128.74,128.73,0.05661708]
[1725567320172,3.8855,128.71,128.67,5.3857]
[1725567320376,3.8539207,128.76,128.67,36.13417749]
[1725567320576,0.67950247,128.75,128.67,36.13417749]
[1725567320776,3.8847,128.73,128.68,3.886]
[1725567321076,0.05289189,128.72,128.69,0.05471953]
[1725567321473,3.93789189,128.72,128.69,0.05471953]
[1725567321674,0.05289189,128.72,128.69,0.05471953]
[1725567321881,0.05289189,128.72,128.7,3.8853]
[1725567322577,3.8838,128.76,128.72,3.8848]
[1725567323077,3.8838,128.76,128.73,2.7253]
[1725567323281,3.8841,128.75,128.73,2.7253]
[1725567323478,3.93428271,128.75,128.73,2.78088309]
[1725567323680,0.05018271,128.75,128.73,2.78088309]
[1725567323882,0.05018271,128.75,128.73,8.71088309]
[1725567326185,34.6087938,128.81,128.73,8.71088309]
[1725567326383,0.67890539,128.8,128.73,8.6553]
[1725567326579,3.8834,128.77,128.73,12.5397]
[1725567327285,3.8834,128.77,128.74,0.05958188]
[1725567327681,3.8839,128.76,128.74,2.79768188]
[1725567327887,3.8839,128.76,128.74,2.79703432]
[1725567328281,3.8835,128.77,128.74,2.79703432]
[1725567328885,26.85,128.83,128.76,3.8837]
[1725567329086,3.8829,128.79,128.78,0.05969556]
[1725567329282,27.52893399,128.79,128.73,8.6553]
[1725567329488,27.52893399,128.79,128.52,225.0]
[1725567329489,26.85,128.75,128.52,225.0]
[1725567329677,26.85,128.71,128.65,5.3951]
[1725567329987,3.8869,128.66,128.61,2.8207]
[1725567330185,26.85,128.69,128.61,2.8207]
[1725567330388,26.85,128.65,128.64,0.0571167]
[1725567330587,53.7,128.65,128.52,8.2158]
[1725567330778,26.85,128.64,128.55,26.85]
[1725567331085,30.70155936,128.64,128.55,26.85]
[1725567331384,111.30128314,128.67,128.56,6.15]
[1725567331385,26.85,128.62,128.56,6.15]
[1725567331587,3.94807624,128.6,128.58,0.05025989]
[1725567331982,0.05927624,128.6,128.58,0.05025989]
[1725567332285,1.0,128.64,128.58,0.05025989]
[1725567332491,1.0,128.64,128.59,3.8889]
[1725567332684,1.0,128.64,128.58,2.88485989]
[1725567332885,111.30128314,128.67,128.6,3.8885]
[1725567333394,3.8871,128.65,128.6,3.8885]
[1725567333691,0.058732,128.64,128.61,0.053685]
[1725567334092,3.946132,128.64,128.61,0.053685]
[1725567334788,0.058732,128.64,128.61,0.053685]
[1725567335188,0.058732,128.64,128.61,2.679985]
[1725567335795,0.058732,128.64,128.61,6.568185]
[1725567336193,0.058732,128.64,128.61,2.679985]
[1725567336895,3.8878,128.63,128.61,2.679985]
[1725567337085,0.058732,128.64,128.61,2.679985]
[1725567337887,0.058732,128.64,128.61,0.053685]
[1725567338091,33.688732,128.64,128.61,0.053685]
[1725567338289,37.63865063,128.64,128.61,0.053685]
[1725567338800,3.888,128.62,128.61,0.053685]
[1725567342596,3.87465735,128.64,128.61,0.053685]
[1725567342896,0.058732,128.64,128.61,0.053685]
[1725567343497,3.946332,128.64,128.61,0.053685]
[1725567343997,0.058732,128.64,128.61,0.053685]
[1725567344589,3.8877,128.63,128.61,0.053685]
[1725567345189,3.888,128.62,128.61,0.053685]
[1725567346094,33.63,128.62,128.56,8.9481]
[1725567346294,1.0,128.61,128.56,8.9481]
[1725567346696,3.8892,128.58,128.56,8.9481]
[1725567346902,1.0,128.61,128.56,6.15]
[1725567347098,0.05444639,128.6,128.57,0.05206938]
[1725567347797,3.8892,128.58,128.57,0.05206938]
[1725567349104,3.8892,128.58,128.57,6.27206938]
[1725567350398,3.8889,128.59,128.57,6.27206938]